[Event "Live Chess"]
[Site "Chess.com"]
[Date "2023.05.21"]
[Round "-"]
[White "ZackirtyChess"]
[Black "luckywookie"]
[Result "1-0"]
[WhiteElo "1192"]
[BlackElo "809"]
[TimeControl "300"]
[EndTime "8:17:41 PDT"]
[Termination "ZackirtyChess won by checkmate"]

1. d4 {[%clk 0:04:59.1]} 1... c6 {[%clk 0:04:58.4]} 2. c4 {[%clk 0:04:56.5]}
2... d5 {[%clk 0:04:57.5]} 3. Nc3 {[%clk 0:04:54.7]} 3... dxc4 {[%clk
0:04:53.8]} 4. e4 {[%clk 0:04:53.3]} 4... e6 {[%clk 0:04:45.4]} 5. Bxc4 {[%clk
0:04:51.5]} 5... b5 {[%clk 0:04:42.4]} 6. Bb3 {[%clk 0:04:45.6]} 6... Bb4 {[%clk
0:04:37.9]} 7. Bd2 {[%clk 0:04:43.6]} 7... Nf6 {[%clk 0:04:32.7]} 8. a3 {[%clk
0:04:43]} 8... Bxc3 {[%clk 0:04:30.8]} 9. Bxc3 {[%clk 0:04:42.5]} 9... O-O
{[%clk 0:04:25.1]} 10. d5 {[%clk 0:04:38.8]} 10... cxd5 {[%clk 0:04:21.4]} 11.
exd5 {[%clk 0:04:35.5]} 11... Nxd5 {[%clk 0:04:11.9]} 12. Bxd5 {[%clk
0:04:31.7]} 12... Qxd5 {[%clk 0:04:10.1]} 13. Qxd5 {[%clk 0:04:30.2]} 13... exd5
{[%clk 0:04:08.9]} 14. Nf3 {[%clk 0:04:30]} 14... Be6 {[%clk 0:04:06.7]} 15. O-O
{[%clk 0:04:27.8]} 15... Re8 {[%clk 0:04:05.6]} 16. Rfe1 {[%clk 0:04:27.1]}
16... Nc6 {[%clk 0:04:04.8]} 17. Nd4 {[%clk 0:04:24.8]} 17... Nxd4 {[%clk
0:04:02.3]} 18. Bxd4 {[%clk 0:04:24.7]} 18... a6 {[%clk 0:04:00.3]} 19. Re3
{[%clk 0:04:24.1]} 19... Rac8 {[%clk 0:03:58.5]} 20. Rae1 {[%clk 0:04:22.9]}
20... Rc2 {[%clk 0:03:56]} 21. Rg3 {[%clk 0:04:18.7]} 21... f6 {[%clk
0:03:53.5]} 22. Bxf6 {[%clk 0:04:16.5]} 22... Kf7 {[%clk 0:03:48.8]} 23. Bxg7
{[%clk 0:04:13.4]} 23... d4 {[%clk 0:03:40.6]} 24. Bxd4 {[%clk 0:04:09]} 24...
Rd2 {[%clk 0:03:35.9]} 25. Bc3 {[%clk 0:04:07.5]} 25... Rd5 {[%clk 0:03:27.7]}
26. Rf3+ {[%clk 0:04:04]} 26... Ke7 {[%clk 0:03:25.6]} 27. Rfe3 {[%clk
0:04:03.1]} 27... Kd6 {[%clk 0:03:23.7]} 28. Bb4+ {[%clk 0:04:01]} 28... Kd7
{[%clk 0:03:22.2]} 29. h3 {[%clk 0:03:56.6]} 29... Rd4 {[%clk 0:03:13.1]} 30.
Re4 {[%clk 0:03:53]} 30... Rxe4 {[%clk 0:03:11.5]} 31. Rxe4 {[%clk 0:03:52.2]}
31... Bf5 {[%clk 0:03:04.8]} 32. Rxe8 {[%clk 0:03:49.9]} 32... Kxe8 {[%clk
0:03:03.8]} 33. g4 {[%clk 0:03:48.8]} 33... Kd7 {[%clk 0:03:03.2]} 34. gxf5
{[%clk 0:03:47.8]} 34... Ke8 {[%clk 0:02:58.6]} 35. f6 {[%clk 0:03:46.2]} 35...
Kf7 {[%clk 0:02:58]} 36. Be7 {[%clk 0:03:43.9]} 36... h6 {[%clk 0:02:56.2]} 37.
Kg2 {[%clk 0:03:43.4]} 37... h5 {[%clk 0:02:55.2]} 38. Kg3 {[%clk 0:03:43]}
38... a5 {[%clk 0:02:54.2]} 39. Kh4 {[%clk 0:03:41.9]} 39... b4 {[%clk
0:02:52.6]} 40. axb4 {[%clk 0:03:40.7]} 40... axb4 {[%clk 0:02:51.8]} 41. Kxh5
{[%clk 0:03:39.7]} 41... b3 {[%clk 0:02:51]} 42. Kg5 {[%clk 0:03:38.5]} 42...
Ke6 {[%clk 0:02:50.2]} 43. Kg6 {[%clk 0:03:37.2]} 43... Kd7 {[%clk 0:02:48.5]}
44. Kf7 {[%clk 0:03:33.8]} 44... Kc6 {[%clk 0:02:45.4]} 45. Ke6 {[%clk 0:03:33]}
45... Kb5 {[%clk 0:02:43.6]} 46. f7 {[%clk 0:03:32.9]} 46... Kc4 {[%clk
0:02:42.9]} 47. f8=Q {[%clk 0:03:32.8]} 47... Kd3 {[%clk 0:02:42.3]} 48. Qf3+
{[%clk 0:03:31.5]} 48... Kc2 {[%clk 0:02:42.2]} 49. Qc3+ {[%clk 0:03:30.4]}
49... Kb1 {[%clk 0:02:40.6]} 50. f4 {[%clk 0:03:27.9]} 50... Ka2 {[%clk
0:02:39]} 51. f5 {[%clk 0:03:27.8]} 51... Ka1 {[%clk 0:02:38.1]} 52. f6 {[%clk
0:03:27.7]} 52... Kb1 {[%clk 0:02:37]} 53. f7 {[%clk 0:03:27.6]} 53... Ka2
{[%clk 0:02:36]} 54. f8=Q {[%clk 0:03:27.5]} 54... Kb1 {[%clk 0:02:35.3]} 55. h4
{[%clk 0:03:26.7]} 55... Ka2 {[%clk 0:02:34.4]} 56. h5 {[%clk 0:03:26.6]} 56...
Kb1 {[%clk 0:02:33.9]} 57. h6 {[%clk 0:03:26.5]} 57... Ka2 {[%clk 0:02:33.4]}
58. h7 {[%clk 0:03:26.2]} 58... Kb1 {[%clk 0:02:33.1]} 59. h8=Q {[%clk
0:03:25.8]} 59... Ka2 {[%clk 0:02:33]} 60. Kd5 {[%clk 0:03:23]} 60... Kb1 {[%clk
0:02:32.9]} 61. Qh7+ {[%clk 0:03:15.2]} 61... Ka2 {[%clk 0:02:32.8]} 62. Qa8#
{[%clk 0:03:14.1]} 1-0

[Event "Live Chess"]
[Site "Chess.com"]
[Date "2023.05.21"]
[Round "-"]
[White "RichardABates"]
[Black "WilliamofOrange16th"]
[Result "1-0"]
[WhiteElo "2184"]
[BlackElo "1849"]
[TimeControl "300"]
[EndTime "8:17:43 PDT"]
[Termination "RichardABates won by resignation"]

1. d4 {[%clk 0:04:58.9]} 1... d5 {[%clk 0:04:55.5]} 2. c4 {[%clk 0:04:57.4]}
2... c6 {[%clk 0:04:54.3]} 3. Nf3 {[%clk 0:04:55.5]} 3... Nf6 {[%clk 0:04:54]}
4. e3 {[%clk 0:04:53.4]} 4... a6 {[%clk 0:04:52.8]} 5. h3 {[%clk 0:04:48.6]}
5... Bf5 {[%clk 0:04:49.9]} 6. Nc3 {[%clk 0:04:44.1]} 6... e6 {[%clk 0:04:48.6]}
7. Nh4 {[%clk 0:04:40.7]} 7... dxc4 {[%clk 0:04:45.1]} 8. Nxf5 {[%clk
0:04:37.3]} 8... exf5 {[%clk 0:04:45]} 9. Bxc4 {[%clk 0:04:36.1]} 9... b5 {[%clk
0:04:44.6]} 10. Bb3 {[%clk 0:04:34.6]} 10... Bb4 {[%clk 0:04:42.7]} 11. O-O
{[%clk 0:04:32.9]} 11... O-O {[%clk 0:04:38.7]} 12. Qf3 {[%clk 0:04:29]} 12...
Qd7 {[%clk 0:04:36.6]} 13. Rd1 {[%clk 0:04:20.5]} 13... Ra7 {[%clk 0:04:35.2]}
14. d5 {[%clk 0:04:15.2]} 14... Bxc3 {[%clk 0:04:31.3]} 15. bxc3 {[%clk
0:04:09]} 15... c5 {[%clk 0:04:30.6]} 16. c4 {[%clk 0:04:04.9]} 16... g6 {[%clk
0:04:20.7]} 17. Bb2 {[%clk 0:04:02.2]} 17... Ne4 {[%clk 0:04:19.3]} 18. Bc2
{[%clk 0:03:56.8]} 18... Nd6 {[%clk 0:04:16.7]} 19. cxb5 {[%clk 0:03:45]} 19...
axb5 {[%clk 0:04:16.6]} 20. Qf4 {[%clk 0:03:43.1]} 20... f6 {[%clk 0:04:12.1]}
21. a4 {[%clk 0:03:28.7]} 21... b4 {[%clk 0:04:08.9]} 22. Bb3 {[%clk 0:03:21.9]}
22... g5 {[%clk 0:04:03.3]} 23. Qf3 {[%clk 0:03:13]} 23... c4 {[%clk 0:04:00.4]}
24. Bc2 {[%clk 0:03:11.6]} 24... c3 {[%clk 0:03:58.2]} 25. Bc1 {[%clk
0:03:08.8]} 25... Rb7 {[%clk 0:03:53]} 26. Bb3 {[%clk 0:03:03.3]} 26... Na6
{[%clk 0:03:50.5]} 27. Qe2 {[%clk 0:02:35.1]} 27... Nc5 {[%clk 0:03:48.7]} 28.
Bc4 {[%clk 0:02:33.9]} 28... b3 {[%clk 0:03:47]} 29. Ba3 {[%clk 0:02:31.7]}
29... Nce4 {[%clk 0:03:17.2]} 30. f3 {[%clk 0:02:23]} 30... c2 {[%clk
0:03:06.2]} 31. Rdc1 {[%clk 0:02:05]} 31... Nc3 {[%clk 0:02:55.2]} 32. Qd3
{[%clk 0:02:03.4]} 32... Nxa4 {[%clk 0:02:48.3]} 33. Bxb3 {[%clk 0:02:00.2]}
33... Rc8 {[%clk 0:02:42.2]} 34. Bxa4 {[%clk 0:01:51.4]} 34... Nc4 {[%clk
0:02:32.2]} 35. Bxd7 {[%clk 0:01:47.4]} 1-0

[Event "Live Chess"]
[Site "Chess.com"]
[Date "2023.05.21"]
[Round "-"]
[White "LL220284LL"]
[Black "ossie57"]
[Result "1-0"]
[WhiteElo "2236"]
[BlackElo "1847"]
[TimeControl "300"]
[EndTime "8:17:45 PDT"]
[Termination "LL220284LL won by checkmate"]

1. e4 {[%clk 0:04:57.5]} 1... d5 {[%clk 0:04:58.2]} 2. exd5 {[%clk 0:04:56.4]}
2... Qxd5 {[%clk 0:04:57.5]} 3. Nc3 {[%clk 0:04:55.4]} 3... Qd6 {[%clk
0:04:56.9]} 4. g3 {[%clk 0:04:54.2]} 4... Nf6 {[%clk 0:04:55.6]} 5. Bg2 {[%clk
0:04:53.7]} 5... c6 {[%clk 0:04:53.7]} 6. Nf3 {[%clk 0:04:52.9]} 6... Bg4 {[%clk
0:04:50.1]} 7. h3 {[%clk 0:04:52]} 7... Bxf3 {[%clk 0:04:48.9]} 8. Qxf3 {[%clk
0:04:51.9]} 8... e6 {[%clk 0:04:46.2]} 9. O-O {[%clk 0:04:50.8]} 9... Nbd7
{[%clk 0:04:42.1]} 10. Ne2 {[%clk 0:04:48.4]} 10... Be7 {[%clk 0:04:33.8]} 11.
d4 {[%clk 0:04:47]} 11... O-O {[%clk 0:04:08.2]} 12. Bf4 {[%clk 0:04:45.4]}
12... Qb4 {[%clk 0:04:07.4]} 13. b3 {[%clk 0:04:39]} 13... Nd5 {[%clk
0:04:00.8]} 14. c3 {[%clk 0:04:34]} 14... Qb6 {[%clk 0:03:55.5]} 15. Bd2 {[%clk
0:04:31.3]} 15... a5 {[%clk 0:03:43.7]} 16. c4 {[%clk 0:04:25.3]} 16... N5f6
{[%clk 0:03:38.6]} 17. Rfd1 {[%clk 0:04:23.7]} 17... e5 {[%clk 0:03:33.9]} 18.
dxe5 {[%clk 0:04:19.2]} 18... Nxe5 {[%clk 0:03:32.9]} 19. Qc3 {[%clk 0:04:18.5]}
19... Ned7 {[%clk 0:03:19.2]} 20. Be3 {[%clk 0:04:15.6]} 20... Bc5 {[%clk
0:03:10.7]} 21. Nd4 {[%clk 0:04:05.4]} 21... Bb4 {[%clk 0:02:58]} 22. Qc2 {[%clk
0:04:03.9]} 22... Qc7 {[%clk 0:02:52.5]} 23. Nf5 {[%clk 0:03:58.6]} 23... Rae8
{[%clk 0:02:39.9]} 24. Bf4 {[%clk 0:03:56.9]} 24... Qb6 {[%clk 0:02:16]} 25. Nd6
{[%clk 0:03:54.7]} 25... Re6 {[%clk 0:02:09.4]} 26. h4 {[%clk 0:03:48.6]} 26...
Bxd6 {[%clk 0:01:52.8]} 27. Bxd6 {[%clk 0:03:47]} 27... c5 {[%clk 0:01:40.2]}
28. Bxf8 {[%clk 0:03:45.2]} 28... Kxf8 {[%clk 0:01:38.1]} 29. Qf5 {[%clk
0:03:43.4]} 29... Re5 {[%clk 0:01:30.4]} 30. Qf3 {[%clk 0:03:41.3]} 30... Re4
{[%clk 0:01:16.3]} 31. Re1 {[%clk 0:03:39.2]} 31... Rxe1+ {[%clk 0:01:14]} 32.
Rxe1 {[%clk 0:03:39.1]} 32... Qb4 {[%clk 0:01:05.1]} 33. Rd1 {[%clk 0:03:38.3]}
33... b5 {[%clk 0:00:54.8]} 34. Bh3 {[%clk 0:03:37.1]} 34... Nb6 {[%clk
0:00:39.7]} 35. Qb7 {[%clk 0:03:32.3]} 35... bxc4 {[%clk 0:00:34.9]} 36. Qb8+
{[%clk 0:03:31.4]} 36... Ne8 {[%clk 0:00:33.4]} 37. bxc4 {[%clk 0:03:21.4]}
37... Qa4 {[%clk 0:00:17.6]} 38. Re1 {[%clk 0:03:18.1]} 38... Nxc4 {[%clk
0:00:08.9]} 39. Qd8 {[%clk 0:03:17.2]} 39... Nd2 {[%clk 0:00:06.7]} 40. Bd7
{[%clk 0:03:14.7]} 40... Nf3+ {[%clk 0:00:04.4]} 41. Kh1 {[%clk 0:03:14]} 41...
Nxe1 {[%clk 0:00:03.2]} 42. Qxe8# {[%clk 0:03:13.2]} 1-0

[Event "Live Chess"]
[Site "Chess.com"]
[Date "2023.05.21"]
[Round "-"]
[White "LiamBellwood"]
[Black "ms_lilley"]
[Result "1-0"]
[WhiteElo "1923"]
[BlackElo "603"]
[TimeControl "300"]
[EndTime "8:17:49 PDT"]
[Termination "LiamBellwood won by checkmate"]

1. d4 {[%clk 0:04:59.4]} 1... d5 {[%clk 0:04:57.4]} 2. Nc3 {[%clk 0:04:58.4]}
2... a6 {[%clk 0:04:55.9]} 3. Bf4 {[%clk 0:04:57.7]} 3... h6 {[%clk 0:04:53.7]}
4. e4 {[%clk 0:04:57]} 4... e6 {[%clk 0:04:49.2]} 5. exd5 {[%clk 0:04:54.8]}
5... exd5 {[%clk 0:04:46.7]} 6. Bd3 {[%clk 0:04:54.1]} 6... Nf6 {[%clk
0:04:44.5]} 7. Nf3 {[%clk 0:04:53.3]} 7... Bd6 {[%clk 0:04:39.9]} 8. Bg3 {[%clk
0:04:52]} 8... O-O {[%clk 0:04:37.8]} 9. Bh4 {[%clk 0:04:48.1]} 9... Qe7+ {[%clk
0:04:35]} 10. Ne2 {[%clk 0:04:43.8]} 10... Nc6 {[%clk 0:04:24.6]} 11. O-O {[%clk
0:04:42.3]} 11... Nxd4 {[%clk 0:04:16.4]} 12. Nexd4 {[%clk 0:04:40.4]} 12... Be5
{[%clk 0:04:14.3]} 13. Nxe5 {[%clk 0:04:39.3]} 13... Qxe5 {[%clk 0:04:11]} 14.
Bxf6 {[%clk 0:04:38.4]} 14... Qxf6 {[%clk 0:04:08.5]} 15. Re1 {[%clk 0:04:38]}
15... Qxd4 {[%clk 0:04:06.2]} 16. Bh7+ {[%clk 0:04:37.1]} 16... Kh8 {[%clk
0:04:01]} 17. Qxd4 {[%clk 0:04:37]} 17... Be6 {[%clk 0:03:55.7]} 18. Bg6 {[%clk
0:04:33.2]} 18... c6 {[%clk 0:03:52.8]} 19. Bh5 {[%clk 0:04:28.5]} 19... b5
{[%clk 0:03:47.2]} 20. Bg4 {[%clk 0:04:26.9]} 20... a5 {[%clk 0:03:36.2]} 21.
Bxe6 {[%clk 0:04:26.1]} 21... fxe6 {[%clk 0:03:34.6]} 22. Rxe6 {[%clk 0:04:26]}
22... Rae8 {[%clk 0:03:27.4]} 23. Rxh6+ {[%clk 0:04:25.1]} 23... Kg8 {[%clk
0:03:25.5]} 24. Rg6 {[%clk 0:04:25]} 24... Rf7 {[%clk 0:03:21.2]} 25. Kf1 {[%clk
0:04:21.4]} 25... Rd8 {[%clk 0:03:12.1]} 26. Re1 {[%clk 0:04:19.5]} 26... Kf8
{[%clk 0:03:04.3]} 27. Qh4 {[%clk 0:04:14.6]} 27... Kg8 {[%clk 0:02:52.8]} 28.
Qxd8+ {[%clk 0:04:11.8]} 28... Rf8 {[%clk 0:02:47.1]} 29. Qe7 {[%clk 0:04:10.9]}
29... Rf7 {[%clk 0:02:43.2]} 30. Qh4 {[%clk 0:04:03.7]} 30... Rxf2+ {[%clk
0:02:29.5]} 31. Kxf2 {[%clk 0:04:02.6]} 31... d4 {[%clk 0:02:26.1]} 32. Qh6
{[%clk 0:04:01.4]} 32... Kf7 {[%clk 0:02:22.4]} 33. Qxg7# {[%clk 0:04:01.3]} 1-0

[Event "Live Chess"]
[Site "Chess.com"]
[Date "2023.05.21"]
[Round "-"]
[White "Bob2pen"]
[Black "Alfiedog12"]
[Result "1-0"]
[WhiteElo "1882"]
[BlackElo "870"]
[TimeControl "300"]
[EndTime "8:17:55 PDT"]
[Termination "Bob2pen won on time"]

1. e4 {[%clk 0:04:56.8]} 1... c6 {[%clk 0:04:56.4]} 2. d4 {[%clk 0:04:54.6]}
2... d5 {[%clk 0:04:55.9]} 3. Nd2 {[%clk 0:04:54]} 3... dxe4 {[%clk 0:04:54.1]}
4. Nxe4 {[%clk 0:04:53.1]} 4... Bf5 {[%clk 0:04:53.5]} 5. Ng3 {[%clk 0:04:52.2]}
5... Bg6 {[%clk 0:04:51.7]} 6. Nf3 {[%clk 0:04:51.5]} 6... Nf6 {[%clk
0:04:51.1]} 7. h4 {[%clk 0:04:50.6]} 7... h6 {[%clk 0:04:48.6]} 8. h5 {[%clk
0:04:49.8]} 8... Bh7 {[%clk 0:04:43.3]} 9. Bd3 {[%clk 0:04:48.7]} 9... Bxd3
{[%clk 0:04:38.2]} 10. Qxd3 {[%clk 0:04:47.7]} 10... Nbd7 {[%clk 0:04:35.4]} 11.
Bf4 {[%clk 0:04:46.5]} 11... e6 {[%clk 0:04:34.3]} 12. O-O-O {[%clk 0:04:41.6]}
12... Qa5 {[%clk 0:04:26.9]} 13. Kb1 {[%clk 0:04:39.4]} 13... Qb6 {[%clk
0:04:14]} 14. Ne5 {[%clk 0:04:34.8]} 14... Nd5 {[%clk 0:04:01]} 15. Bd2 {[%clk
0:04:25.4]} 15... Ba3 {[%clk 0:03:54.3]} 16. b3 {[%clk 0:04:14.3]} 16... Bb4
{[%clk 0:03:46.1]} 17. Nxd7 {[%clk 0:04:10.6]} 17... Kxd7 {[%clk 0:03:43.7]} 18.
c4 {[%clk 0:04:07.9]} 18... Bxd2 {[%clk 0:03:26.5]} 19. Qxd2 {[%clk 0:04:04.6]}
19... Nb4 {[%clk 0:03:20.3]} 20. Ne4 {[%clk 0:04:00.4]} 20... Ke7 {[%clk
0:03:07.3]} 21. Qf4 {[%clk 0:03:51.8]} 21... Rad8 {[%clk 0:02:46.8]} 22. Nc5
{[%clk 0:03:32.6]} 22... Qa5 {[%clk 0:02:29]} 23. a4 {[%clk 0:03:14.7]} 23... b5
{[%clk 0:02:05.4]} 24. Nb7 {[%clk 0:03:13]} 24... Qb6 {[%clk 0:01:55.3]} 25.
Nxd8 {[%clk 0:03:10]} 25... Kxd8 {[%clk 0:01:44.1]} 26. c5 {[%clk 0:03:00.6]}
26... Qc7 {[%clk 0:01:36.1]} 27. Qxc7+ {[%clk 0:02:57.1]} 27... Kxc7 {[%clk
0:01:34.4]} 28. axb5 {[%clk 0:02:56.3]} 28... cxb5 {[%clk 0:01:31]} 29. Kb2
{[%clk 0:02:54.1]} 29... a5 {[%clk 0:01:28.8]} 30. Ra1 {[%clk 0:02:50.5]} 30...
Ra8 {[%clk 0:01:22.8]} 31. Rhd1 {[%clk 0:02:48.7]} 31... Nd5 {[%clk 0:01:14.8]}
32. g3 {[%clk 0:02:41.2]} 32... f5 {[%clk 0:01:11.7]} 33. Re1 {[%clk 0:02:37.4]}
33... Kd7 {[%clk 0:00:53]} 34. c6+ {[%clk 0:02:36.3]} 34... Kxc6 {[%clk
0:00:52.2]} 35. Rxe6+ {[%clk 0:02:34.8]} 35... Kd7 {[%clk 0:00:48.5]} 36. Rg6
{[%clk 0:02:31.5]} 36... a4 {[%clk 0:00:31.8]} 37. bxa4 {[%clk 0:02:27.6]} 37...
bxa4 {[%clk 0:00:28.6]} 38. Rxg7+ {[%clk 0:02:26.5]} 38... Ke6 {[%clk 0:00:26]}
39. Rg6+ {[%clk 0:02:24.7]} 39... Kf7 {[%clk 0:00:23.7]} 40. Rxh6 {[%clk
0:02:19.7]} 40... Rb8+ {[%clk 0:00:19.4]} 41. Kc2 {[%clk 0:02:17.7]} 41... Nb4+
{[%clk 0:00:16.3]} 42. Kd2 {[%clk 0:02:16.5]} 42... Ra8 {[%clk 0:00:07.5]} 43.
Rb6 {[%clk 0:02:10.8]} 43... Nd5 {[%clk 0:00:04.7]} 44. Rb5 {[%clk 0:02:07.2]}
44... Nc7 {[%clk 0:00:01.3]} 45. Rxf5+ {[%clk 0:02:04.4]} 1-0

[Event "Live Chess"]
[Site "Chess.com"]
[Date "2023.05.21"]
[Round "-"]
[White "seabuck"]
[Black "SupremeTactician"]
[Result "1/2-1/2"]
[WhiteElo "1899"]
[BlackElo "2190"]
[TimeControl "300"]
[EndTime "8:17:58 PDT"]
[Termination "Game drawn by agreement"]

1. d4 {[%clk 0:04:58.1]} 1... Nf6 {[%clk 0:04:58.7]} 2. c4 {[%clk 0:04:57.1]}
2... e6 {[%clk 0:04:58.6]} 3. Nc3 {[%clk 0:04:56.1]} 3... d5 {[%clk 0:04:58.5]}
4. Nf3 {[%clk 0:04:54.4]} 4... Bb4 {[%clk 0:04:57.6]} 5. Qc2 {[%clk 0:04:47.5]}
5... O-O {[%clk 0:04:52.4]} 6. a3 {[%clk 0:04:44.8]} 6... Bxc3+ {[%clk
0:04:49.4]} 7. Qxc3 {[%clk 0:04:43.4]} 7... dxc4 {[%clk 0:04:49.2]} 8. Qxc4
{[%clk 0:04:39.8]} 8... c6 {[%clk 0:04:48.4]} 9. Bg5 {[%clk 0:04:37]} 9... h6
{[%clk 0:04:46.4]} 10. Bh4 {[%clk 0:04:34.6]} 10... Qd5 {[%clk 0:04:43.6]} 11.
Qxd5 {[%clk 0:04:27.8]} 11... Nxd5 {[%clk 0:04:43.5]} 12. e4 {[%clk 0:04:22.3]}
12... Nc7 {[%clk 0:04:42]} 13. Bc4 {[%clk 0:04:11.6]} 13... b5 {[%clk
0:04:40.8]} 14. Ba2 {[%clk 0:04:09.9]} 14... Nd7 {[%clk 0:04:39.9]} 15. O-O
{[%clk 0:04:07.2]} 15... Nb6 {[%clk 0:04:39]} 16. Ne5 {[%clk 0:03:56.9]} 16...
Bb7 {[%clk 0:04:37.4]} 17. f3 {[%clk 0:03:47.2]} 17... Rac8 {[%clk 0:04:32.3]}
18. Rac1 {[%clk 0:03:44.7]} 18... Na6 {[%clk 0:04:29.3]} 19. Rc2 {[%clk
0:03:27.5]} 19... c5 {[%clk 0:04:21.9]} 20. dxc5 {[%clk 0:03:20.5]} 20... Rxc5
{[%clk 0:04:20.1]} 21. Rxc5 {[%clk 0:03:10.1]} 21... Nxc5 {[%clk 0:04:20]} 22.
Rc1 {[%clk 0:03:00]} 22... Rc8 {[%clk 0:04:16.4]} 23. Bf2 {[%clk 0:02:45.8]}
23... Ncd7 {[%clk 0:04:06.7]} 24. Rxc8+ {[%clk 0:02:42.4]} 24... Bxc8 {[%clk
0:04:04.8]} 25. Nxd7 {[%clk 0:02:35.5]} 25... Bxd7 {[%clk 0:04:03.8]} 1/2-1/2

[Event "Live Chess"]
[Site "Chess.com"]
[Date "2023.05.21"]
[Round "-"]
[White "Olisingapore"]
[Black "lateforthesky"]
[Result "1/2-1/2"]
[WhiteElo "1808"]
[BlackElo "2078"]
[TimeControl "300"]
[EndTime "8:18:10 PDT"]
[Termination "Game drawn by agreement"]

1. d4 {[%clk 0:04:58.3]} 1... Nf6 {[%clk 0:04:58.5]} 2. c4 {[%clk 0:04:55.6]}
2... g6 {[%clk 0:04:57.1]} 3. g3 {[%clk 0:04:54.5]} 3... Bg7 {[%clk 0:04:56.2]}
4. Bg2 {[%clk 0:04:54.1]} 4... O-O {[%clk 0:04:55.4]} 5. Nf3 {[%clk 0:04:54]}
5... d6 {[%clk 0:04:54.3]} 6. O-O {[%clk 0:04:52.9]} 6... Nbd7 {[%clk
0:04:53.8]} 7. Nc3 {[%clk 0:04:52.4]} 7... e5 {[%clk 0:04:53.2]} 8. e4 {[%clk
0:04:51.7]} 8... a6 {[%clk 0:04:46.5]} 9. Re1 {[%clk 0:04:45.8]} 9... exd4
{[%clk 0:04:34.7]} 10. Nxd4 {[%clk 0:04:45.7]} 10... Ng4 {[%clk 0:04:31.8]} 11.
Qxg4 {[%clk 0:04:42.3]} 11... Bxd4 {[%clk 0:04:30]} 12. Qd1 {[%clk 0:04:38.3]}
12... Bg7 {[%clk 0:04:26.2]} 13. Be3 {[%clk 0:04:31]} 13... Ne5 {[%clk
0:04:23.2]} 14. Qd2 {[%clk 0:04:29.3]} 14... Nxc4 {[%clk 0:04:20.9]} 15. Qe2
{[%clk 0:04:27.3]} 15... Nxe3 {[%clk 0:04:19.7]} 16. Qxe3 {[%clk 0:04:26.4]}
16... Be6 {[%clk 0:04:15.1]} 17. a3 {[%clk 0:04:11.7]} 17... Qd7 {[%clk
0:04:06.4]} 18. Rac1 {[%clk 0:04:08.9]} 18... Rae8 {[%clk 0:03:38.2]} 19. h4
{[%clk 0:04:03.3]} 19... d5 {[%clk 0:03:22.7]} 20. exd5 {[%clk 0:03:56.7]} 20...
Bxd5 {[%clk 0:03:20.9]} 21. Qd2 {[%clk 0:03:54.3]} 21... c6 {[%clk 0:03:19.2]}
22. Nxd5 {[%clk 0:03:52.2]} 22... cxd5 {[%clk 0:03:17.8]} 23. Rxe8 {[%clk
0:03:47.7]} 23... Rxe8 {[%clk 0:03:15.9]} 24. Qxd5 {[%clk 0:03:47.3]} 24... Qxd5
{[%clk 0:03:04]} 25. Bxd5 {[%clk 0:03:45.7]} 25... Bxb2 {[%clk 0:03:01.6]} 26.
Rb1 {[%clk 0:03:41.8]} 26... Bxa3 {[%clk 0:02:56.5]} 27. Bxb7 {[%clk 0:03:41.3]}
27... a5 {[%clk 0:02:54.1]} 28. Ra1 {[%clk 0:03:22.3]} 28... Bb4 {[%clk
0:02:52.6]} 29. Bg2 {[%clk 0:03:17.5]} 29... Re2 {[%clk 0:02:48.2]} 30. Bf1
{[%clk 0:03:13.9]} 30... Rc2 {[%clk 0:02:39.4]} 31. Bb5 {[%clk 0:03:09.2]} 31...
Kg7 {[%clk 0:02:29.3]} 32. Ba4 {[%clk 0:03:00.5]} 32... Rd2 {[%clk 0:02:23.7]}
33. Rc1 {[%clk 0:02:58.9]} 33... h6 {[%clk 0:02:20.8]} 34. Rc7 {[%clk
0:02:49.9]} 34... Re2 {[%clk 0:02:02.2]} 35. Bb3 {[%clk 0:02:45.3]} 35... Re7
{[%clk 0:02:00.3]} 36. Rxe7 {[%clk 0:02:44.3]} 36... Bxe7 {[%clk 0:01:58.4]} 37.
Kf1 {[%clk 0:02:43.3]} 37... f5 {[%clk 0:01:55.9]} 38. Ke2 {[%clk 0:02:41.5]}
38... g5 {[%clk 0:01:53.6]} 39. hxg5 {[%clk 0:02:40.4]} 39... Bxg5 {[%clk
0:01:48.5]} 40. f4 {[%clk 0:02:37.3]} 40... Be7 {[%clk 0:01:46.2]} 41. Kf3
{[%clk 0:02:35.3]} 41... Kf6 {[%clk 0:01:45.1]} 42. Ke3 {[%clk 0:02:33.5]} 42...
Bb4 {[%clk 0:01:43.5]} 43. Kf3 {[%clk 0:02:27.2]} 43... Ke7 {[%clk 0:01:37.1]}
44. Bc2 {[%clk 0:02:17.6]} 44... Ke6 {[%clk 0:01:35.9]} 45. Bb3+ {[%clk
0:02:13.8]} 45... Kd6 {[%clk 0:01:33.5]} 46. Bc2 {[%clk 0:02:10]} 46... Ke6
{[%clk 0:01:26.5]} 47. Bb3+ {[%clk 0:02:06.9]} 47... Kf6 {[%clk 0:01:25.6]} 48.
Bc2 {[%clk 0:02:03.9]} 48... Be1 {[%clk 0:01:21.7]} 49. Bb3 {[%clk 0:01:58.6]}
49... h5 {[%clk 0:01:18]} 50. Bc2 {[%clk 0:01:55.5]} 50... h4 {[%clk 0:01:17.3]}
51. gxh4 {[%clk 0:01:54.2]} 51... Bxh4 {[%clk 0:01:16.5]} 52. Bb3 {[%clk
0:01:53.7]} 52... Be1 {[%clk 0:01:15.1]} 53. Bc2 {[%clk 0:01:51.9]} 53... Bc3
{[%clk 0:01:13.6]} 1/2-1/2